bitfinex/quotes_BTCUSD_20241201
["timestamp","ask_amount","ask_price","bid_price","bid_amount"]
[1733024725431,0.1233633,96381.0,96380.0,0.04625755]
[1733024726337,0.1233633,96381.0,96380.0,0.05010289]
[1733024727915,0.1233633,96381.0,96380.0,0.04625755]
[1733024728806,0.1233633,96381.0,96380.0,0.04325755]
[1733024729034,0.1233633,96381.0,96380.0,0.04125755]
[1733024729247,0.1233633,96381.0,96380.0,0.04225755]
[1733024729662,0.1233633,96381.0,96380.0,0.04125755]
[1733024730293,0.1233633,96381.0,96380.0,0.04325755]
[1733024730697,0.1233633,96381.0,96380.0,0.04225755]
[1733024730909,0.1233633,96381.0,96380.0,0.04325755]
[1733024731363,0.1233633,96381.0,96380.0,0.04225755]
[1733024731808,0.1233633,96381.0,96380.0,0.04325755]
[1733024733412,0.0776633,96381.0,96380.0,0.04325755]
[1733024733872,0.0776633,96381.0,96380.0,0.04710611]
[1733024734094,0.0776633,96381.0,96380.0,0.04325755]
[1733024735174,0.0008633,96381.0,96380.0,0.04325755]
[1733024735406,0.0008633,96381.0,96380.0,0.04710611]
[1733024736697,0.0822633,96381.0,96380.0,0.04710611]
[1733024736895,0.1318633,96381.0,96380.0,0.04710611]
[1733024737112,0.0822633,96381.0,96380.0,0.04710611]
[1733024737387,0.0822633,96381.0,96380.0,0.04325755]
[1733024737769,0.0822633,96381.0,96380.0,0.04710611]
[1733024738655,0.0008633,96381.0,96380.0,0.04710611]
[1733024740222,0.0008633,96381.0,96380.0,0.09349286]
[1733024740432,0.0008633,96381.0,96380.0,0.14189286]
[1733024740859,0.0008633,96381.0,96380.0,0.2820378]
[1733024741055,0.0008633,96381.0,96380.0,0.37240695]
[1733024741376,0.0008633,96381.0,96380.0,0.14189286]
[1733024741593,0.0008633,96381.0,96380.0,0.14372915]
[1733024741807,0.0008633,96381.0,96380.0,0.14172915]
[1733024742016,0.0008633,96381.0,96380.0,0.14772915]
[1733024742226,0.0008633,96381.0,96380.0,0.15672915]
[1733024743310,0.0008633,96381.0,96380.0,0.28257436]
[1733024743527,0.0008633,96381.0,96380.0,0.28073807]
[1733024748229,0.0008633,96381.0,96380.0,0.43073807]
[1733024748422,0.0008633,96381.0,96380.0,0.83886336]
[1733024748546,0.0008633,96381.0,96380.0,0.43073807]
[1733024749007,0.0008633,96381.0,96380.0,0.83886217]
[1733024749452,0.0008633,96381.0,96380.0,0.43073807]
[1733024750328,0.0008633,96381.0,96380.0,0.83886217]
[1733024750566,0.0008633,96381.0,96380.0,0.43073807]
[1733024751011,0.0008633,96381.0,96380.0,0.83886217]
[1733024753541,0.0008633,96381.0,96380.0,0.43073807]
[1733024761666,0.0008633,96381.0,96380.0,0.42473807]
[1733024761874,0.0008633,96381.0,96380.0,0.41573807]
[1733024762081,0.0008633,96381.0,96380.0,0.42073807]
[1733024762285,0.0008633,96381.0,96380.0,0.42973807]
[1733024763403,0.0008633,96381.0,96380.0,0.91442639]
[1733024763618,0.000863,96388.0,96387.0,0.435896]
[1733024763834,0.000863,96388.0,96387.0,0.83784376]
[1733024764046,0.000863,96388.0,96387.0,0.56557238]
[1733024764627,0.000863,96388.0,96387.0,0.84167082]
[1733024764835,0.00104183,96388.0,96387.0,0.85067082]
[1733024765045,0.00104183,96388.0,96387.0,0.95345646]
[1733024765262,0.00104183,96388.0,96387.0,0.95945646]
[1733024766382,0.00104183,96388.0,96387.0,0.68335802]
[1733024767060,0.00104183,96388.0,96387.0,0.95945646]
[1733024767513,0.00104183,96388.0,96387.0,0.68335802]
[1733024768371,0.00104183,96388.0,96387.0,0.95945646]
[1733024768585,0.0002,96389.0,96387.0,0.95945646]
[1733024768817,0.0002,96389.0,96388.0,0.35406787]
[1733024769035,0.0002,96389.0,96388.0,0.6283304]
[1733024769257,0.0002,96389.0,96388.0,0.48666226]
[1733024769482,0.0002,96389.0,96388.0,0.76267479]
[1733024769704,0.0002,96389.0,96388.0,0.48666226]
[1733024771038,0.0002,96389.0,96388.0,0.50366226]
[1733024771462,0.0002,96389.0,96388.0,0.49466226]
[1733024771686,0.0002,96389.0,96388.0,0.50366226]
[1733024773429,0.0008629,96400.0,96391.0,0.053]
[1733024773633,0.0008629,96400.0,96391.0,0.46851245]
[1733024773808,0.0008629,96400.0,96391.0,0.54309927]
[1733024774005,0.0008629,96400.0,96391.0,0.79115892]
[1733024774307,0.0008629,96400.0,96391.0,1.19866712]
[1733024774518,1e-06,96392.0,96391.0,1.19866712]
[1733024774724,0.00078291,96406.0,96405.0,0.387458]
[1733024774921,0.00078291,96406.0,96405.0,0.60104901]
[1733024775341,0.00078291,96406.0,96405.0,0.88077851]
[1733024776162,0.00078291,96406.0,96405.0,0.60485953]
[1733024776403,0.00078291,96406.0,96405.0,0.61385953]
[1733024776616,0.00078291,96406.0,96405.0,0.63505203]
[1733024777709,0.00078291,96406.0,96405.0,0.61485953]
[1733024777922,0.00078291,96406.0,96405.0,0.62185953]
[1733024778140,0.00078291,96406.0,96405.0,0.63085953]
[1733024778556,0.00078291,96406.0,96405.0,0.65171855]
[1733024779438,0.00078291,96406.0,96405.0,0.64271855]
[1733024779875,0.00078291,96406.0,96405.0,0.64471855]
[1733024780310,0.00078291,96406.0,96405.0,0.65271855]
[1733024780529,0.00078291,96406.0,96405.0,0.60471855]
[1733024781642,0.00078291,96406.0,96405.0,0.59471855]
[1733024784414,0.00078291,96406.0,96405.0,0.87059042]
[1733024785255,0.00078291,96406.0,96405.0,0.87082966]
[1733024785642,0.00078291,96406.0,96405.0,0.87097968]
[1733024785792,0.00078291,96406.0,96405.0,0.59471855]
[1733024785997,0.00078291,96406.0,96405.0,0.87097828]
[1733024786418,0.00078291,96406.0,96405.0,0.59471855]
[1733024794597,0.00078291,96406.0,96405.0,0.64181855]
[1733024795053,0.0507634,96426.0,96405.0,0.64181855]
[1733024795054,0.0008634,96426.0,96405.0,0.38726055]
[1733024795272,0.0008634,96426.0,96425.0,0.44469494]
[1733024795486,0.0008634,96426.0,96425.0,0.36326021]
[1733024795717,0.0008634,96426.0,96425.0,0.36704725]
[1733024795908,0.0008634,96426.0,96425.0,0.59739717]
[1733024796160,0.0008634,96426.0,96425.0,0.413434]
[1733024796377,0.0008634,96426.0,96425.0,0.42367931]
[1733024796586,0.00145939,96426.0,96425.0,0.42367931]
[1733024797054,0.00145939,96426.0,96425.0,0.42967931]
[1733024797252,0.00145939,96426.0,96425.0,0.422434]
[1733024797760,0.00145939,96426.0,96425.0,0.419434]
[1733024798967,0.00145939,96426.0,96425.0,0.396434]
[1733024799184,0.00145939,96426.0,96425.0,0.398434]
[1733024799636,0.00145939,96426.0,96425.0,0.396434]
[1733024799880,0.00145939,96426.0,96425.0,0.390434]
[1733024800105,0.00145939,96426.0,96425.0,0.394434]
[1733024800553,0.00145939,96426.0,96425.0,0.400434]
[1733024801226,0.00145939,96426.0,96425.0,0.394434]
[1733024801663,0.00145939,96426.0,96425.0,0.403434]
[1733024803164,0.00145939,96426.0,96425.0,0.41426967]
[1733024805307,0.00145939,96426.0,96425.0,0.40926967]
[1733024805745,0.07675939,96427.0,96425.0,0.40926967]
[1733024805968,0.07693811,96427.0,96426.0,0.13283146]
[1733024806440,0.07693811,96427.0,96426.0,0.13661643]
[1733024808268,0.07693811,96427.0,96426.0,0.14461643]
[1733024809955,0.07693811,96427.0,96426.0,0.37897242]
[1733024810187,0.07693811,96427.0,96426.0,0.14861643]
[1733024810430,0.07693811,96427.0,96426.0,0.33291172]
[1733024810658,0.07693811,96427.0,96426.0,0.14861643]
[1733024810922,0.07693811,96427.0,96426.0,0.16091661]
[1733024811358,0.07693811,96427.0,96426.0,0.34523081]
[1733024811872,0.07780111,96427.0,96426.0,0.16091661]
[1733024812121,0.07780111,96427.0,96426.0,0.34523081]
[1733024812451,0.07780111,96427.0,96426.0,0.16091661]
[1733024812453,0.07780111,96427.0,96426.0,0.3912726]
[1733024812666,0.07780111,96427.0,96426.0,0.34531786]
[1733024813084,0.07780111,96427.0,96426.0,0.34532328]
[1733024813281,0.07780111,96427.0,96426.0,0.16091661]
[1733024813935,0.07780111,96427.0,96426.0,0.37912477]
[1733024814202,0.07780111,96427.0,96426.0,0.39142828]
[1733024814970,0.07780111,96427.0,96426.0,0.16091994]
[1733024815787,0.00104172,96427.0,96426.0,0.31420066]
[1733024816003,0.00104172,96427.0,96426.0,0.33536515]
[1733024816443,0.00104172,96427.0,96426.0,0.61197516]
[1733024816890,0.00104172,96427.0,96426.0,0.60797516]
[1733024817541,0.00104172,96427.0,96426.0,0.32336515]
[1733024817758,0.00104172,96427.0,96426.0,0.33636515]
[1733024822372,0.00104172,96427.0,96426.0,0.74505078]
[1733024822607,0.00104172,96427.0,96426.0,0.33636515]
[1733024822836,0.00104172,96427.0,96426.0,0.74504792]
[1733024823057,0.00104172,96427.0,96426.0,0.33636229]
[1733024824792,0.00104172,96427.0,96426.0,0.33808829]
[1733024827026,0.00104172,96427.0,96426.0,0.32578764]
[1733024827239,0.00104172,96427.0,96426.0,0.33808932]
[1733024827713,0.0002,96429.0,96428.0,0.03]
[1733024827932,0.0002,96429.0,96428.0,0.66676444]
[1733024828147,0.0002,96429.0,96428.0,0.26037646]
[1733024828477,0.0002,96429.0,96428.0,0.66868409]
[1733024829487,0.0002,96429.0,96428.0,0.67468409]
[1733024829677,0.0002,96429.0,96428.0,0.67478837]
[1733024830017,0.0002,96429.0,96428.0,0.68378837]
[1733024830688,0.0002,96429.0,96428.0,0.68378515]
[1733024831555,0.0002,96429.0,96428.0,0.83378515]
[1733024832015,0.0002,96429.0,96428.0,0.42537324]
[1733024832625,0.0002,96429.0,96428.0,0.83369352]
[1733024832859,0.0002,96429.0,96428.0,0.42537324]
[1733024833509,1e-06,96429.0,96428.0,0.43537324]
[1733024833704,0.0008634,96450.0,96431.0,0.063]
[1733024833916,0.0008634,96450.0,96431.0,0.56271012]
[1733024834089,0.0008634,96450.0,96431.0,0.56087513]
[1733024834291,0.0008634,96450.0,96431.0,0.5646538]
[1733024834929,0.000863,96466.0,96451.0,0.237359]
[1733024835135,0.000863,96466.0,96452.0,0.2963652]
[1733024835383,0.000863,96466.0,96452.0,0.30012563]
[1733024835590,0.137561,96453.0,96452.0,0.30012563]
[1733024836435,0.137561,96453.0,96452.0,0.07279479]
[1733024837367,0.137561,96453.0,96452.0,0.07277628]
[1733024837577,0.137561,96453.0,96452.0,0.07977628]
[1733024838444,0.137561,96453.0,96452.0,0.05604038]
[1733024838884,0.137561,96453.0,96452.0,0.04376043]
[1733024840277,0.137561,96453.0,96452.0,0.05483854]
[1733024841153,0.137561,96453.0,96452.0,0.04376043]
[1733024841767,0.137561,96453.0,96452.0,0.04]
[1733024842375,0.137561,96453.0,96452.0,0.037]
[1733024843188,0.137561,96453.0,96452.0,0.04677233]
[1733024843838,0.137561,96453.0,96452.0,0.05905228]
[1733024844046,0.137561,96453.0,96452.0,0.03977233]
[1733024844464,0.137561,96453.0,96452.0,0.04077233]
[1733024844662,0.137561,96453.0,96452.0,0.03376043]
[1733024844852,0.137561,96453.0,96452.0,0.04604038]
[1733024845063,0.137561,96453.0,96452.0,0.03576043]
[1733024845268,0.137561,96453.0,96452.0,0.04804038]
[1733024846312,0.137561,96453.0,96452.0,0.25539738]
[1733024846437,0.137561,96453.0,96452.0,0.28616098]
[1733024846816,0.137561,96453.0,96452.0,0.07880398]
[1733024847051,0.091461,96453.0,96452.0,0.07880398]
[1733024847249,0.014361,96453.0,96452.0,0.21701992]
[1733024847497,0.014361,96453.0,96452.0,0.07880398]
[1733024847753,0.014361,96453.0,96452.0,0.2630919]
[1733024848004,0.014361,96453.0,96452.0,0.36593711]
[1733024848237,0.0152238,96453.0,96452.0,0.41200909]
[1733024848461,0.0152238,96453.0,96452.0,0.18164919]
[1733024848688,0.0152238,96453.0,96452.0,0.18764919]
[1733024848915,0.0152238,96453.0,96452.0,0.17964919]
[1733024849184,0.0152238,96453.0,96452.0,0.41692447]
[1733024849412,0.0152238,96453.0,96452.0,0.41992447]
[1733024849881,0.0152238,96453.0,96452.0,0.18964919]
[1733024850552,0.0152238,96453.0,96452.0,0.41989695]
[1733024850719,0.0152238,96453.0,96452.0,0.4198981]
[1733024851168,0.0152238,96453.0,96452.0,0.18964919]
[1733024851759,0.0152238,96453.0,96452.0,0.41988216]
[1733024851962,0.0152238,96453.0,96452.0,0.41988543]
[1733024852162,0.0152238,96453.0,96452.0,0.18964919]
[1733024853765,0.0152238,96453.0,96452.0,0.17964919]
[1733024854049,0.0152238,96453.0,96452.0,0.18664919]
[1733024854552,0.0152238,96453.0,96452.0,0.17964919]
[1733024854783,0.0152238,96453.0,96452.0,0.19064919]
[1733024855264,0.0152238,96453.0,96452.0,0.19248413]
[1733024858382,0.0152238,96453.0,96452.0,0.19249574]
[1733024861249,0.0152238,96453.0,96452.0,0.05888693]
[1733024861250,0.3442778,96453.0,96452.0,0.05888693]
[1733024861464,0.1369238,96453.0,96452.0,0.24132589]
[1733024861674,0.1369238,96453.0,96452.0,0.05705199]
[1733024861900,0.0912238,96453.0,96452.0,0.04476043]
[1733024862109,0.0912238,96453.0,96452.0,0.13342444]
[1733024862977,0.0912238,96453.0,96452.0,0.14571962]
[1733024863200,0.0912238,96453.0,96452.0,0.13342444]
[1733024863610,0.0912238,96453.0,96452.0,0.30669834]
[1733024863785,0.0912238,96453.0,96452.0,0.31769834]
[1733024863998,0.0912238,96453.0,96452.0,0.13342444]
[1733024864640,0.0912238,96453.0,96452.0,0.12242444]
[1733024864858,0.0912238,96453.0,96452.0,0.13042444]
[1733024865068,0.0912238,96453.0,96452.0,0.31479229]
[1733024865492,0.0912238,96453.0,96452.0,0.13042444]
[1733024866543,0.0912238,96453.0,96452.0,0.12842444]
[1733024866753,0.0912238,96453.0,96452.0,0.12242444]
[1733024866957,0.0152238,96453.0,96452.0,0.12942444]
[1733024867932,0.0152238,96453.0,96452.0,0.12742444]
[1733024868133,0.0152238,96453.0,96452.0,0.12242444]
[1733024868329,0.0152238,96453.0,96452.0,0.12542444]
[1733024868762,0.0152238,96453.0,96452.0,0.13242444]
[1733024869842,0.0152238,96453.0,96452.0,0.23526965]
[1733024870058,0.0152238,96453.0,96452.0,0.30326965]
[1733024870777,0.0152238,96453.0,96452.0,0.30026965]
[1733024870932,0.0152238,96453.0,96452.0,0.29726965]
[1733024871219,0.0152238,96453.0,96452.0,0.30526965]
[1733024872270,0.0152238,96453.0,96452.0,0.58183594]
[1733024873887,0.0152238,96453.0,96452.0,0.30526965]
[1733024874630,0.0152238,96453.0,96452.0,0.26026965]
[1733024876281,0.0152238,96453.0,96452.0,0.25226965]
[1733024876442,0.0152238,96453.0,96452.0,0.24826965]
[1733024876650,0.0152238,96453.0,96452.0,0.25726965]
[1733024876852,0.0152238,96453.0,96452.0,0.25226965]
[1733024877199,0.0152238,96453.0,96452.0,0.25726965]
[1733024877400,0.0152238,96453.0,96452.0,0.24826965]
[1733024877644,0.0152238,96453.0,96452.0,0.25326965]
[1733024877764,0.0152238,96453.0,96452.0,0.26226965]
[1733024880487,0.0152238,96453.0,96452.0,0.25326965]
[1733024880697,0.0152238,96453.0,96452.0,0.24826965]
[1733024880984,0.0152238,96453.0,96452.0,0.25726965]
[1733024881210,0.0152238,96453.0,96452.0,0.26226965]
[1733024882492,0.0152238,96453.0,96452.0,0.30726965]
[1733024884165,0.000863,96466.0,96454.0,0.203]
[1733024884390,0.000863,96466.0,96454.0,0.30767995]
[1733024884599,0.000863,96466.0,96454.0,0.43109268]
[1733024886306,0.000863,96466.0,96458.0,0.03]
[1733024886512,0.000863,96466.0,96456.0,0.16]
[1733024886513,0.000863,96466.0,96465.0,0.457629]
[1733024886727,0.000863,96466.0,96465.0,0.60395792]
[1733024887562,0.00104169,96466.0,96465.0,0.60395792]
[1733024887744,0.00104169,96466.0,96465.0,0.61295792]
[1733024888358,0.00104169,96466.0,96465.0,0.61995792]
[1733024888823,0.00104169,96466.0,96465.0,0.70145792]
[1733024889231,0.00104169,96466.0,96465.0,1.10908848]
[1733024890296,0.00104169,96466.0,96465.0,0.70145792]
[1733024890515,0.00104169,96466.0,96465.0,1.10908848]
[1733024890742,0.00104169,96466.0,96465.0,1.02758848]
[1733024890960,0.00104169,96466.0,96465.0,0.64094156]
[1733024891395,0.03935535,96481.0,96480.0,0.237296]
[1733024891598,0.03935535,96481.0,96480.0,0.34014121]
[1733024891802,0.03935535,96481.0,96480.0,0.34386202]
[1733024892235,0.03935535,96481.0,96480.0,0.13656602]
[1733024892925,0.08875535,96481.0,96480.0,0.03372081]
[1733024893372,0.08875535,96481.0,96480.0,0.03]
[1733024893771,0.08875535,96481.0,96472.0,0.03]
[1733024893972,0.08375535,96481.0,96480.0,0.003]
[1733024894320,0.08375535,96481.0,96480.0,0.04371184]
[1733024894666,0.08375535,96481.0,96480.0,0.04071184]
[1733024894871,0.08375535,96481.0,96480.0,0.037]
[1733024895274,0.08375535,96481.0,96480.0,0.04071184]
[1733024895486,0.08375535,96481.0,96480.0,0.05272339]
[1733024896123,0.08461885,96481.0,96480.0,0.05272339]
[1733024896364,0.08461885,96481.0,96480.0,0.04572339]
[1733024896599,0.08461885,96481.0,96480.0,0.05072339]
[1733024896776,0.08461885,96481.0,96480.0,0.04401155]
[1733024897223,0.08461885,96481.0,96480.0,0.04701155]
[1733024897432,0.08461885,96481.0,96480.0,0.037]
[1733024897856,0.03521885,96481.0,96480.0,0.032]
[1733024898076,0.03521885,96481.0,96480.0,0.03371184]
[1733024898265,0.03521885,96481.0,96480.0,0.03571184]
[1733024898718,0.03521885,96481.0,96480.0,0.04071184]
[1733024898852,0.0008635,96481.0,96480.0,0.27280972]
[1733024899887,0.0008635,96481.0,96480.0,0.27080972]
[1733024900095,0.0008635,96481.0,96480.0,0.27180972]
[1733024900726,0.0008635,96481.0,96480.0,0.26580972]
[1733024901134,0.0008635,96481.0,96480.0,0.27080972]
[1733024901784,0.0008635,96481.0,96480.0,0.26780972]
[1733024902591,0.0008635,96481.0,96480.0,0.27280972]
[1733024904302,0.0008635,96481.0,96480.0,0.37565493]
[1733024904738,0.0008635,96481.0,96480.0,0.5137068]
[1733024904942,0.0008635,96481.0,96480.0,0.37565493]
[1733024905171,0.0008635,96481.0,96480.0,0.55972409]
[1733024905316,0.0008635,96481.0,96480.0,0.55472409]
[1733024905723,0.0008635,96481.0,96480.0,0.37665493]
[1733024906499,0.0008635,96481.0,96480.0,0.37465493]
[1733024906701,0.0008635,96481.0,96480.0,0.5125638]
[1733024906981,0.0008635,96481.0,96480.0,0.37065493]
[1733024907185,0.0008635,96481.0,96480.0,0.37965493]
[1733024907385,0.0008635,96481.0,96480.0,0.37765493]
[1733024907602,0.0008635,96481.0,96480.0,0.37038133]
[1733024907822,0.0008635,96481.0,96480.0,0.37838133]
[1733024908230,0.0008635,96481.0,96480.0,0.06024012]
[1733024908435,0.0786635,96481.0,96480.0,0.06824012]
[1733024908642,0.0786635,96481.0,96480.0,0.04343824]
[1733024909489,0.0786635,96481.0,96480.0,0.04643824]
[1733024909899,0.0786635,96481.0,96480.0,0.03843824]
[1733024910122,0.0786635,96481.0,96480.0,0.03543824]
[1733024910320,0.0786635,96481.0,96480.0,0.03743824]
[1733024910525,0.0786635,96481.0,96480.0,0.11284084]
[1733024910937,0.0786635,96481.0,96480.0,0.11484084]
[1733024914506,0.0008635,96481.0,96480.0,0.11484084]
[1733024914711,0.0008635,96481.0,96480.0,0.32213684]
[1733024915309,0.0008635,96481.0,96480.0,0.46013648]
[1733024915539,0.0008635,96481.0,96480.0,0.46020393]
[1733024915737,0.0008635,96481.0,96480.0,0.32213684]
[1733024916084,0.0008635,96481.0,96480.0,0.46120393]
[1733024916511,0.0008635,96481.0,96480.0,0.46020393]
[1733024917138,0.0008635,96481.0,96480.0,0.25290793]
[1733024917358,0.0008635,96481.0,96480.0,0.25790793]
[1733024917557,0.0008635,96481.0,96480.0,0.11984084]
[1733024917795,0.0008635,96481.0,96480.0,0.25795233]
[1733024918029,0.0008635,96481.0,96480.0,0.25295233]
[1733024918257,0.0008635,96481.0,96480.0,0.11484084]
[1733024918374,0.0008635,96481.0,96480.0,0.11684084]
[1733024918600,0.0008635,96481.0,96480.0,0.11484084]
[1733024919665,0.0008635,96481.0,96480.0,0.30099763]
[1733024920155,0.0008635,96481.0,96480.0,0.30100631]
[1733024920365,0.0008635,96481.0,96480.0,0.11684084]
[1733024920533,0.0008635,96481.0,96480.0,0.11484084]
[1733024920739,0.0008635,96481.0,96480.0,0.11884084]
[1733024921115,0.0008635,96481.0,96480.0,0.11484084]
[1733024921314,0.0008635,96481.0,96480.0,0.11984084]
[1733024921592,0.0008635,96481.0,96480.0,0.34309378]
[1733024921759,0.0008635,96481.0,96480.0,0.34311105]
[1733024922042,0.0008635,96481.0,96480.0,0.35111105]
[1733024922273,0.0008635,96481.0,96480.0,0.12084084]
[1733024922489,0.0008635,96481.0,96480.0,0.34911105]
[1733024922714,0.0008635,96481.0,96480.0,0.12084084]
[1733024923133,0.0008635,96481.0,96480.0,0.30311185]
[1733024923337,0.0008635,96481.0,96480.0,0.11884084]
[1733024923481,0.0008635,96481.0,96480.0,0.12084084]
[1733024923681,0.0008635,96481.0,96480.0,0.11484084]
[1733024923902,0.0008635,96481.0,96480.0,0.11984084]
[1733024924065,0.0008635,96481.0,96480.0,0.35011105]
[1733024924279,0.0008635,96481.0,96480.0,0.34511105]
[1733024924565,0.0008635,96481.0,96480.0,0.35011105]
[1733024924784,0.0008635,96481.0,96480.0,0.34811105]
[1733024925020,0.0008635,96481.0,96480.0,0.11984084]
[1733024925469,0.0008635,96481.0,96480.0,0.11784084]
[1733024925696,0.0008635,96481.0,96480.0,0.11984084]
[1733024926176,0.0008635,96481.0,96480.0,0.11784084]
[1733024926723,0.0008635,96481.0,96480.0,0.11484084]
[1733024926931,0.0008635,96481.0,96480.0,0.12184084]
[1733024927157,0.0008635,96481.0,96480.0,0.11484084]
[1733024927387,0.0008635,96485.0,96482.0,0.03]
[1733024927620,0.0008635,96485.0,96482.0,0.110567]
[1733024927852,0.0008635,96485.0,96482.0,0.11427167]
[1733024928138,0.0008635,96485.0,96482.0,0.37155145]
[1733024928383,0.0008635,96485.0,96482.0,0.36971688]
[1733024928618,0.0008635,96485.0,96482.0,0.37571688]
[1733024928842,0.0008635,96485.0,96482.0,0.37771688]
[1733024929295,0.0008635,96485.0,96482.0,0.78416425]
[1733024929525,0.0008635,96485.0,96482.0,0.37571688]
[1733024929773,0.0008635,96485.0,96482.0,0.38171688]
[1733024929995,0.0008635,96485.0,96482.0,0.37571688]
[1733024930240,0.01,96505.0,96482.0,0.37571688]
[1733024930498,0.0008633,96523.0,96508.0,0.053]
[1733024930758,0.0008633,96523.0,96508.0,0.03367595]
[1733024930979,0.0829,96512.0,96508.0,0.03367595]
[1733024931236,0.047,96519.0,96508.0,0.03367595]
[1733024931888,0.00037288,96509.0,96508.0,0.03367595]
[1733024932360,0.00037288,96509.0,96508.0,0.21983521]
[1733024932361,0.08327288,96509.0,96508.0,0.21983521]
[1733024932589,0.08327288,96509.0,96508.0,0.03567595]
[1733024932813,0.08327288,96509.0,96508.0,0.08170318]
[1733024933577,0.08327288,96509.0,96508.0,0.11070318]
[1733024933812,0.00037288,96509.0,96508.0,0.10470318]
[1733024934232,0.00037288,96509.0,96508.0,0.10370318]
[1733024934456,0.00037288,96509.0,96508.0,0.10270318]
[1733024934697,0.00037288,96509.0,96508.0,0.10570318]
[1733024935359,0.00037288,96509.0,96508.0,0.10670318]
[1733024935830,0.00037288,96509.0,96508.0,0.10570318]
[1733024936049,0.00037288,96509.0,96508.0,0.10270318]
[1733024936282,0.00037288,96509.0,96508.0,0.10770318]
[1733024936531,0.00037288,96509.0,96508.0,0.10370318]
[1733024936776,0.00037288,96509.0,96508.0,0.20654839]
[1733024937020,0.00037288,96509.0,96508.0,0.39573507]
[1733024937227,0.00037288,96509.0,96508.0,0.39057464]
[1733024937435,0.00037288,96509.0,96508.0,0.39557995]
[1733024937638,0.00037288,96509.0,96508.0,0.21154839]
[1733024937844,0.00037288,96509.0,96508.0,0.20754839]
[1733024938271,0.00037288,96509.0,96508.0,0.20554839]
[1733024938494,0.00037288,96509.0,96508.0,0.20954839]
[1733024939090,0.00037288,96509.0,96508.0,0.21354839]
[1733024939302,0.00037288,96509.0,96508.0,0.44341959]
[1733024939527,0.00037288,96509.0,96508.0,0.44041959]
[1733024939735,0.00037288,96509.0,96508.0,0.44941959]
[1733024940785,0.00037288,96509.0,96508.0,0.46050235]
[1733024940995,0.00037288,96509.0,96508.0,0.18460392]
[1733024941420,0.00037288,96509.0,96508.0,0.07067595]
[1733024942359,0.00037288,96509.0,96508.0,0.17352116]
[1733024943000,0.00123608,96509.0,96508.0,0.17352116]
[1733024943678,0.00123608,96509.0,96508.0,0.31148175]
[1733024943903,0.00123608,96509.0,96508.0,0.426074]
[1733024944114,0.00123608,96509.0,96508.0,0.24212655]
[1733024944593,0.00123608,96509.0,96508.0,0.426074]
[1733024944823,0.0008633,96523.0,96510.0,0.053]
[1733024945038,0.0008633,96523.0,96521.0,0.023]
[1733024945039,0.0014586,96523.0,96521.0,0.023]
[1733024945255,0.0014586,96523.0,96522.0,0.0560214]
[1733024945469,0.0014586,96523.0,96522.0,0.08243036]
[1733024946958,0.0014586,96523.0,96522.0,0.08743036]
[1733024947412,0.0014586,96523.0,96522.0,0.03840896]
[1733024947757,0.0014586,96523.0,96522.0,0.035]
[1733024947986,0.0014586,96523.0,96522.0,0.037]
[1733024948404,0.0014586,96523.0,96522.0,0.035]
[1733024948880,0.0014586,96523.0,96522.0,0.05840896]
[1733024949086,0.0014586,96523.0,96522.0,0.11069336]
[1733024949298,0.0014586,96523.0,96522.0,0.10569336]
[1733024949778,0.0014586,96523.0,96522.0,0.11069336]
[1733024950851,0.0014586,96523.0,96522.0,0.10869336]
[1733024951270,0.0014586,96523.0,96522.0,0.11069336]
[1733024952402,0.0014586,96523.0,96522.0,0.10369336]
[1733024952629,0.0014586,96523.0,96522.0,0.10769336]
[1733024953560,0.0014586,96523.0,96522.0,0.10469336]
[1733024953762,0.0014586,96523.0,96522.0,0.10669336]
[1733024953980,0.0014586,96523.0,96522.0,0.10569336]
[1733024955916,0.0014586,96523.0,96522.0,0.10469336]
[1733024956084,0.0014586,96523.0,96522.0,0.10769336]
[1733024956719,0.0014586,96523.0,96522.0,0.06040896]
[1733024957027,0.1284586,96523.0,96522.0,0.00440896]
[1733024957257,0.1284586,96523.0,96522.0,0.03640896]
[1733024957469,0.1284586,96523.0,96522.0,0.033]
[1733024957654,0.1284586,96523.0,96522.0,0.031]
[1733024957799,0.1284586,96523.0,96522.0,0.034]
[1733024958029,0.1284586,96523.0,96522.0,0.033]
[1733024958238,0.1284586,96523.0,96522.0,0.003]
[1733024959068,0.1284586,96523.0,96511.0,0.03]
[1733024959270,0.1284586,96523.0,96515.0,0.03]
[1733024959722,0.207206,96522.0,96516.0,0.00341326]
[1733024959901,0.1284586,96523.0,96516.0,0.00341326]
[1733024960115,0.207206,96522.0,96516.0,0.00341326]
[1733024960326,0.207206,96522.0,96516.0,0.03341326]
[1733024961178,0.0824586,96523.0,96518.0,0.03]
[1733024961394,0.0014586,96523.0,96522.0,0.03]
[1733024961619,0.0014586,96523.0,96522.0,0.053]
[1733024961816,0.0014586,96523.0,96522.0,0.05641001]
[1733024962095,0.0014586,96523.0,96522.0,0.08585486]
[1733024962704,0.000863,96524.0,96523.0,0.053]
[1733024963079,0.000863,96524.0,96523.0,0.05640914]
[1733024964055,0.000863,96524.0,96523.0,0.05940914]
[1733024964266,0.000863,96524.0,96523.0,0.05640914]
[1733024964481,0.000863,96524.0,96523.0,0.10957912]
[1733024965537,0.000863,96524.0,96523.0,0.11057912]
[1733024965988,0.000863,96524.0,96523.0,0.10957912]
[1733024966166,0.000863,96524.0,96523.0,0.11357912]
[1733024966393,0.000863,96524.0,96523.0,0.10957912]
[1733024966833,0.000863,96524.0,96523.0,0.11157912]
[1733024967006,0.000863,96524.0,96523.0,0.11257912]
[1733024967383,0.000863,96524.0,96523.0,0.11157912]
[1733024969114,0.000863,96524.0,96523.0,0.10957912]
[1733024969328,0.000863,96524.0,96523.0,0.11057912]
[1733024969755,0.000863,96524.0,96523.0,0.10957912]
[1733024969962,0.000863,96524.0,96523.0,0.11057912]
[1733024970633,0.000863,96524.0,96523.0,0.05740914]
[1733024970842,0.000863,96524.0,96523.0,0.05640914]
[1733024970985,0.000863,96524.0,96523.0,0.05740914]
[1733024972196,0.000863,96524.0,96523.0,0.05640914]
[1733024972434,0.000863,96524.0,96523.0,0.05840914]
[1733024972650,0.000863,96524.0,96523.0,0.18792888]
[1733024972864,0.000863,96524.0,96523.0,0.18592888]
[1733024973073,0.000863,96524.0,96523.0,0.18892888]
[1733024973290,0.000863,96524.0,96523.0,0.18592888]
[1733024973782,0.000863,96524.0,96523.0,0.32390677]
[1733024974153,0.000863,96524.0,96523.0,0.28100677]
[1733024974583,0.000863,96524.0,96523.0,0.14502888]
[1733024975472,0.000863,96524.0,96523.0,0.28300677]
[1733024975705,0.000863,96524.0,96523.0,0.14102888]
[1733024975961,0.000863,96524.0,96523.0,0.19658664]
[1733024976173,0.000863,96524.0,96523.0,0.1965874]
[1733024976406,0.000863,96524.0,96523.0,0.15925435]
[1733024976641,0.000863,96524.0,96523.0,0.16325435]
[1733024976856,0.000863,96524.0,96523.0,0.16025435]